bitfinex/quotes_SOLUSD_20251124
["timestamp","ask_amount","ask_price","bid_price","bid_amount"]
[1763949744928,0.68,132.65,132.61,3.46]
[1763949745134,0.16569164,132.68,132.64,10.80326251]
[1763949745341,0.16569164,132.68,132.66,10.80326251]
[1763949745519,0.16569164,132.68,132.67,11.55701241]
[1763949745723,0.16569164,132.68,132.65,3.46]
[1763949746113,0.84569164,132.68,132.65,3.46]
[1763949746316,0.84569164,132.68,132.65,21.58096]
[1763949746513,0.84569164,132.68,132.66,10.05565864]
[1763949746514,0.16569164,132.68,132.66,10.05565864]
[1763949746721,0.16569164,132.68,132.66,0.75380672]
[1763949746915,0.84569164,132.68,132.66,0.75380672]
[1763949747116,0.16569164,132.68,132.67,9.30185192]
[1763949747543,0.16569164,132.68,132.66,10.05565864]
[1763949747740,0.16569164,132.68,132.67,27.42281192]
[1763949748546,0.16569164,132.68,132.67,34.96031097]
[1763949748721,0.14895642,132.69,132.67,34.96031097]
[1763949748922,0.14895642,132.69,132.68,13.51554501]
[1763949749320,0.1648352,132.72,132.69,27.42281192]
[1763949749542,0.8448352,132.72,132.68,18.12096]
[1763949749732,0.8448352,132.72,132.7,3.46]
[1763949750043,9.30185192,132.71,132.63,0.75397722]
[1763949750248,9.30185192,132.7,132.64,12.76185192]
[1763949750426,0.68,132.71,132.64,20.30079468]
[1763949750627,0.68,132.7,132.64,3.46]
[1763949750829,0.68,132.7,132.64,10.99917795]
[1763949751049,6.07264241,132.68,132.64,3.46]
[1763949751248,0.8448352,132.72,132.66,6.07264241]
[1763949751452,6.07264241,132.71,132.67,3.46]
[1763949751632,0.8448352,132.72,132.67,3.46]
[1763949751945,0.68,132.71,132.67,9.53264241]
[1763949752253,6.75264241,132.71,132.67,3.46]
[1763949752746,6.75264241,132.7,132.67,3.46]
[1763949752944,0.1648352,132.72,132.67,17.82381656]
[1763949753249,0.15084443,132.68,132.67,17.07006666]
[1763949753541,0.15084443,132.68,132.67,11.75117415]
[1763949753749,0.15084443,132.68,132.67,4.2137499]
[1763949754225,0.15084443,132.68,132.67,11.75124895]
[1763949754427,0.15084443,132.68,132.67,4.2137499]
[1763949755028,6.90348684,132.68,132.67,2.74]
[1763949755757,0.15084443,132.68,132.67,2.74]
[1763949756321,0.83084443,132.68,132.67,2.74]
[1763949756630,6.90348684,132.68,132.67,2.74]
[1763949756822,6.90348684,132.68,132.62,7.54021289]
[1763949756823,6.90348684,132.68,132.64,3.46]
[1763949757018,6.75264241,132.67,132.64,3.46]
[1763949757283,6.07264241,132.65,132.59,0.75420469]
[1763949757549,0.68,132.66,132.61,6.07264241]
[1763949757728,6.75264241,132.66,132.6,9.53264241]
[1763949757936,6.07264241,132.65,132.6,3.46]
[1763949758143,6.75264241,132.65,132.6,3.46]
[1763949758334,0.68,132.64,132.6,3.46]
[1763949759045,6.75264241,132.64,132.6,3.46]
[1763949759256,6.07264241,132.62,132.6,3.46]
[1763949759568,6.75264241,132.63,132.6,3.46]
[1763949759726,6.07264241,132.61,132.57,3.46]
[1763949759934,6.07264241,132.58,132.5,18.86688235]
[1763949760133,6.07264241,132.58,132.52,6.07264241]
[1763949760439,6.75264241,132.57,132.51,9.53264241]
[1763949760642,0.68,132.57,132.52,13.61867319]
[1763949760848,7.53844049,132.66,132.52,13.61867319]
[1763949760849,0.68,132.65,132.56,6.07264241]
[1763949761086,0.68,132.65,132.53,0.75454614]
[1763949761087,0.68,132.67,132.57,4.21431847]
[1763949761293,0.68,132.67,132.59,6.07264241]
[1763949761478,0.68,132.67,132.58,4.18]
[1763949761794,0.68,132.67,132.62,6.07264241]
[1763949761964,0.68,132.67,132.63,4.21397722]
[1763949762294,0.68,132.67,132.63,10.28661963]
[1763949762673,0.68,132.67,132.63,11.75351019]
[1763949762999,6.75264241,132.67,132.63,3.46]
[1763949763290,0.15084443,132.68,132.65,6.07264241]
[1763949763493,0.82084443,132.68,132.66,3.46]
[1763949763657,6.89348684,132.68,132.66,3.46]
[1763949764057,0.67,132.67,132.62,0.75403408]
[1763949764359,0.67,132.67,132.62,6.07264241]
[1763949764859,6.07264241,132.65,132.59,6.07264241]
[1763949765060,6.07264241,132.65,132.6,3.46]
[1763949765270,0.67,132.64,132.6,3.46]
[1763949765465,0.67,132.64,132.6,9.53264241]
[1763949765669,0.67,132.64,132.6,10.28679022]
[1763949766296,0.67,132.64,132.6,4.21414781]
[1763949766995,0.67,132.64,132.6,3.46]
[1763949767164,0.67,132.64,132.6,9.53264241]
[1763949767366,0.68,132.67,132.62,6.07264241]
[1763949767567,0.68,132.67,132.6,3.46]
[1763949767767,6.07264241,132.64,132.6,3.46]
[1763949768167,6.75264241,132.63,132.6,3.46]
[1763949768480,0.68,132.62,132.6,2.91]
[1763949769783,6.75264241,132.62,132.6,2.91]
[1763949770088,6.07264241,132.61,132.52,8.30059428]
[1763949770408,0.68,132.61,132.53,4.13]
[1763949770574,0.68,132.63,132.58,6.07264241]
[1763949770774,0.15084443,132.68,132.59,9.53264241]
[1763949770775,6.75264241,132.65,132.59,9.53264241]
[1763949770972,0.68,132.65,132.6,6.07264241]
[1763949771403,0.68,132.64,132.59,3.46]
[1763949771585,6.07264241,132.65,132.6,6.07264241]
[1763949771787,6.07264241,132.66,132.61,6.07264241]
[1763949772011,6.75264241,132.67,132.61,6.07264241]
[1763949772181,0.68,132.66,132.61,6.07264241]
[1763949772581,0.15084443,132.68,132.64,6.07264241]
[1763949772808,0.15084443,132.68,132.65,10.28650596]
[1763949772993,0.14952512,132.66,132.65,10.28650596]
[1763949773199,0.14952512,132.66,132.65,17.82514146]
[1763949773502,0.14952512,132.66,132.65,18.49514146]
[1763949774913,0.14952512,132.66,132.65,4.21386355]
[1763949775410,0.14952512,132.66,132.65,10.95650596]
[1763949775612,0.14952512,132.66,132.65,18.49514146]
[1763949775999,0.14952512,132.66,132.65,12.42249905]
[1763949776202,0.14952512,132.66,132.65,11.75249905]
[1763949776415,0.14952512,132.66,132.65,17.82514146]
[1763949776620,0.14952512,132.66,132.65,18.49514146]
[1763949776797,0.14952512,132.66,132.65,17.82514146]
[1763949777411,0.14952512,132.66,132.65,11.75249905]
[1763949777610,0.14952512,132.66,132.65,17.82514146]
[1763949778703,0.153238,132.68,132.65,30.59908781]
[1763949778917,0.153238,132.68,132.66,6.07264241]
[1763949779230,0.153238,132.68,132.66,13.61061401]
[1763949779426,0.153238,132.68,132.66,6.07264241]
[1763949779625,0.153238,132.68,132.65,11.75235639]
[1763949779859,0.153238,132.68,132.66,6.07264241]
[1763949780118,0.153238,132.68,132.67,6.07264241]
[1763949780329,0.153238,132.68,132.67,6.82639231]
[1763949780535,0.153238,132.68,132.67,25.61735231]
[1763949780722,1e-08,132.71,132.69,18.12096]
[1763949781028,3.93841458,132.89,132.76,18.12096]
[1763949781244,0.68,132.83,132.77,10.99182194]
[1763949781449,3.93645014,132.95,132.82,6.07264241]
[1763949781623,4.61645014,132.95,132.83,3.46]
[1763949781827,0.68,132.94,132.83,3.46]
[1763949782140,1.99999999,132.93,132.76,50.0]
[1763949782310,1.99999999,132.9,132.77,3.46]
[1763949782510,18.12096,132.87,132.77,3.46]
[1763949782706,6.07264241,132.79,132.72,18.12096]
[1763949782906,6.07264241,132.9,132.71,6.07264241]
[1763949782907,6.07264241,132.76,132.71,6.07264241]
[1763949783136,6.07264241,132.76,132.72,3.46]
[1763949783340,0.68,132.78,132.75,6.07264241]
[1763949783511,72.91590909,133.01,132.72,3.46]
[1763949783512,6.07264241,132.83,132.77,6.07264241]
[1763949783725,0.68,132.89,132.79,6.07264241]
[1763949783923,0.68,132.89,132.73,50.79340917]
[1763949783924,18.12096,132.87,132.8,9.53264241]
[1763949784140,0.68,132.88,132.8,3.46]
[1763949784342,6.75264241,132.87,132.82,6.07264241]
[1763949784527,0.68,132.86,132.81,6.07264241]
[1763949784940,0.68,132.86,132.82,6.07264241]
[1763949785648,0.68,132.86,132.84,6.07264241]
[1763949785943,1.99999999,132.98,132.85,9.53264241]
[1763949786147,0.68,132.91,132.85,3.46]
[1763949786447,0.68,132.91,132.82,44.51229836]
[1763949786448,6.07264241,132.89,132.86,3.46]
[1763949786943,0.68,132.88,132.86,3.46]
[1763949787144,0.68,132.88,132.8,6.07264241]
[1763949787145,0.68,132.88,132.83,3.46]
[1763949787329,0.68,132.88,132.83,9.53264241]
[1763949787522,0.68,132.88,132.84,6.07264241]
[1763949787721,6.75264241,132.88,132.83,9.53264241]
[1763949787930,0.68,132.91,132.85,6.07264241]
[1763949788129,0.68,132.91,132.87,6.07264241]
[1763949788421,6.07264241,132.9,132.81,7.52908533]
[1763949788622,0.68,132.91,132.84,6.07264241]
[1763949788850,6.07264241,132.86,132.82,3.46]
[1763949789039,6.07264241,132.85,132.82,3.46]
[1763949789332,6.07264241,132.85,132.76,0.04]
[1763949789333,6.07264241,132.83,132.76,3.46]
[1763949789535,0.68,132.82,132.76,2.74]
[1763949789747,0.68,132.82,132.64,8.20920386]
[1763949789748,6.07264241,132.77,132.64,8.20920386]
[1763949789927,6.07264241,132.71,132.66,6.07264241]
[1763949790132,6.07264241,132.69,132.65,3.46]
[1763949790453,6.07264241,132.66,132.64,0.2]
[1763949790666,1.99999999,132.74,132.64,0.2]
[1763949790667,18.12096,132.73,132.64,0.2]
[1763949790863,18.12096,132.73,132.66,6.07264241]
[1763949790864,0.68,132.73,132.66,6.07264241]
[1763949791023,0.68,132.72,132.64,0.2]
[1763949791228,0.68,132.72,132.65,6.07264241]
[1763949791430,0.68,132.72,132.68,18.12096]
[1763949791657,6.07264241,132.69,132.66,3.46]
[1763949791861,18.12096,132.74,132.64,0.2]
[1763949791862,6.07264241,132.67,132.64,0.2]
[1763949792236,6.07264241,132.65,132.64,0.2]
[1763949792565,6.07264241,132.65,132.57,6.07264241]
[1763949792771,6.07264241,132.63,132.58,6.07264241]
[1763949793053,0.16514137,132.6,132.58,6.07264241]
[1763949793236,0.16514137,132.6,132.58,0.75426157]
[1763949793566,0.16514137,132.6,132.57,6.07264241]
[1763949793735,0.16514137,132.6,132.58,6.07264241]
[1763949794369,0.16514137,132.6,132.56,0.75437537]
[1763949794549,0.16514137,132.6,132.59,6.07264241]
[1763949794739,0.16514137,132.6,132.59,6.8268471]
[1763949795062,0.16514137,132.6,132.59,7.4968471]
[1763949795243,0.16514137,132.6,132.59,8.9662516]
[1763949795430,0.16514137,132.6,132.59,7.4968471]
[1763949795630,0.16514137,132.6,132.59,15.03889401]
[1763949795831,0.16514137,132.6,132.59,33.15985401]
[1763949796249,0.16514137,132.6,132.59,25.6178071]
[1763949796643,0.16514137,132.6,132.59,33.15985401]
[1763949797043,0.16283661,132.61,132.6,18.12096]
[1763949797259,0.16283661,132.61,132.6,28.37360241]
[1763949797438,0.15894423,132.62,132.6,41.98772294]
[1763949797636,0.14863606,132.63,132.6,41.98772294]
[1763949797637,0.14863606,132.63,132.61,7.54673335]
[1763949797847,0.14863606,132.63,132.62,24.19360241]
[1763949798175,0.14863606,132.63,132.62,24.91360241]
[1763949800173,0.14863606,132.63,132.62,32.45394323]
[1763949800378,0.15929144,132.64,132.63,50.72]
[1763949800379,1e-08,132.64,132.63,50.72]
[1763949800662,1e-08,132.64,132.63,57.54661963]
[1763949800843,6.72264241,132.74,132.63,57.54661963]
[1763949801038,6.07264241,132.72,132.64,22.30096]
[1763949801244,0.80815483,132.65,132.6,7.54140132]
[1763949801566,0.15815483,132.65,132.64,6.07264241]
[1763949801765,0.80815483,132.65,132.63,6.07264241]
[1763949802269,0.15815483,132.65,132.62,18.12096]
[1763949802444,0.15815483,132.65,132.63,6.07264241]
[1763949802640,0.80815483,132.65,132.62,24.19360241]
[1763949802847,0.80815483,132.65,132.61,27.65360241]
[1763949803259,0.80815483,132.65,132.61,9.53264241]
[1763949803551,0.80815483,132.65,132.63,6.07264241]
[1763949803769,0.80815483,132.65,132.61,3.46]
[1763949803967,0.80815483,132.65,132.63,6.07264241]
[1763949804162,0.80815483,132.65,132.61,9.53264241]
[1763949804467,0.80815483,132.65,132.62,6.07264241]
[1763949804969,0.80815483,132.65,132.61,3.46]
[1763949805172,0.80815483,132.65,132.61,9.53264241]
[1763949805678,0.80815483,132.65,132.62,6.07264241]
[1763949806182,0.80815483,132.65,132.61,3.46]
[1763949806183,6.88079724,132.65,132.61,3.46]
[1763949806571,6.07264241,132.63,132.58,6.07264241]
[1763949806763,6.07264241,132.62,132.59,3.46]
[1763949807082,0.65,132.63,132.59,3.46]
[1763949807261,6.72264241,132.64,132.59,9.53264241]
[1763949807581,0.65,132.64,132.6,6.07264241]
[1763949807881,0.65,132.63,132.6,6.07264241]
[1763949808081,0.80815483,132.65,132.62,6.07264241]
[1763949808269,0.15815483,132.65,132.63,9.53264241]
[1763949808467,0.65,132.64,132.63,9.53264241]
[1763949808867,0.65,132.64,132.63,3.46]
[1763949809054,0.65,132.64,132.59,0.75420469]
[1763949809055,6.72264241,132.64,132.6,3.46]
[1763949809474,0.65,132.63,132.6,3.46]
[1763949809661,0.15815483,132.65,132.62,6.07264241]
[1763949809860,0.15815483,132.65,132.63,6.07264241]
[1763949810180,0.15815483,132.65,132.64,17.07184627]
[1763949810377,0.15815483,132.65,132.64,181.89184627]
[1763949810758,0.15815483,132.65,132.64,79.89184627]
[1763949810982,0.16551874,132.67,132.65,130.22096]
[1763949811186,1e-08,132.67,132.66,7.54644913]
[1763949811370,0.65,132.74,132.66,7.54644913]
[1763949811569,6.07264241,132.73,132.66,164.1]
[1763949811775,6.07264241,132.72,132.66,170.17264241]
[1763949811975,0.65,132.73,132.66,170.17264241]
[1763949812171,6.07264241,132.72,132.67,6.07264241]
[1763949812373,6.07264241,132.72,132.68,3.46]
[1763949812668,9.95238602,132.71,132.68,3.46]
[1763949812871,9.30238602,132.69,132.68,3.46]
[1763949813195,9.4543286,132.69,132.65,3.46]
[1763949813483,9.95238602,132.68,132.65,3.46]
[1763949813690,9.30238602,132.67,132.65,3.46]
[1763949813887,9.95238602,132.67,132.65,3.46]
[1763949814200,0.65,132.66,132.65,3.46]
[1763949814779,0.65,132.66,132.59,7.54155211]
[1763949814780,9.95238602,132.66,132.59,7.54155211]
[1763949814968,9.95238602,132.66,132.62,3.46]
[1763949815168,0.65,132.65,132.62,3.46]
[1763949815501,9.95238602,132.68,132.63,9.30238602]
[1763949815678,0.65,132.67,132.62,4.21403408]
[1763949815879,0.15194258,132.69,132.66,9.30238602]
[1763949816080,0.15194258,132.69,132.68,16.83931698]
[1763949817068,0.16460751,132.7,132.68,17.55931698]
[1763949817268,0.16460751,132.7,132.69,60.02238602]
[1763949817681,0.14619807,132.71,132.69,60.77602231]
[1763949817864,0.13920858,132.74,132.71,68.12096]
[1763949818200,0.16476707,132.76,132.73,34.95687452]
[1763949818367,0.16476707,132.76,132.75,9.30238602]
[1763949818872,0.16476707,132.76,132.75,10.02238602]
[1763949819268,0.16476707,132.76,132.75,27.42334602]
[1763949819466,0.16476707,132.76,132.75,31.60334602]
[1763949820064,0.16476707,132.76,132.75,3.46]
[1763949820375,0.16476707,132.76,132.75,12.76238602]
[1763949821495,0.16476707,132.76,132.75,10.99295668]
[1763949821689,0.16476707,132.76,132.75,20.2953427]
[1763949822572,0.16476707,132.76,132.75,21.0153427]
[1763949822977,0.16476707,132.76,132.75,20.2953427]
[1763949823202,0.16476707,132.76,132.75,21.04863836]
[1763949823579,0.87476707,132.76,132.75,12.76238602]
[1763949823906,0.16476707,132.76,132.75,20.2953427]
[1763949824080,0.16476707,132.76,132.75,21.0153427]
[1763949824982,0.16476707,132.76,132.75,21.76863836]
[1763949825794,0.16476707,132.76,132.75,12.46625234]
[1763949825994,0.16476707,132.76,132.75,21.76863836]
[1763949826388,1e-08,132.76,132.75,21.76863836]
[1763949827313,1e-08,132.77,132.76,0.72]
[1763949827620,1e-08,132.77,132.76,9.30238602]
[1763949828200,1e-08,132.77,132.75,11.74625234]
[1763949828402,1e-08,132.77,132.76,9.30238602]
[1763949828588,0.65000001,132.77,132.76,9.30238602]
[1763949828775,0.65000001,132.77,132.75,3.46]
[1763949828983,9.95238603,132.77,132.75,3.46]
[1763949829209,9.30238602,132.76,132.73,3.44]
[1763949829410,9.30238602,132.75,132.73,3.44]
[1763949829605,0.65,132.74,132.73,3.44]
[1763949829991,9.95238602,132.74,132.73,3.44]
[1763949831899,0.65,132.74,132.73,3.44]
[1763949833111,0.80387353,132.74,132.73,3.44]
[1763949833484,10.10625955,132.74,132.73,3.44]
[1763949833681,10.10625955,132.74,132.7,3.44]
[1763949833911,0.65,132.73,132.7,3.44]
[1763949834486,9.30238602,132.72,132.7,3.44]
[1763949835109,0.15387353,132.74,132.7,12.74238602]
[1763949835315,0.65,132.73,132.71,9.30238602]
[1763949835698,0.65,132.73,132.7,3.44]
[1763949837898,9.95238602,132.73,132.7,3.44]
[1763949838417,9.95238602,132.72,132.7,3.44]
[1763949838596,9.30238602,132.71,132.7,3.44]
[1763949838794,9.30238602,132.71,132.64,7.53920201]
[1763949838795,0.65,132.71,132.64,7.53920201]
[1763949839002,0.65,132.7,132.67,9.30238602]
[1763949839514,0.65,132.7,132.66,9.30238602]
[1763949839816,0.65,132.7,132.65,3.44]
[1763949839817,9.30238602,132.68,132.65,3.44]
[1763949840218,0.65,132.67,132.65,3.44]
[1763949840412,0.65,132.7,132.66,9.30238602]
[1763949840718,0.65,132.7,132.65,66.29386355]
[1763949840891,9.30238602,132.67,132.65,65.54]
[1763949841220,18.77096,132.7,132.61,12.74238602]
[1763949841437,9.30238602,132.64,132.61,3.44]
[1763949841638,0.65,132.69,132.59,62.3]
[1763949841639,9.30238602,132.62,132.59,0.2]
[1763949841913,9.30238602,132.61,132.59,0.2]
[1763949842323,18.12096,132.67,132.59,9.50238602]
[1763949842493,0.65,132.61,132.59,0.2]
[1763949843694,9.30238602,132.63,132.59,0.2]
[1763949843695,0.65,132.67,132.6,10.77653383]
[1763949843901,0.65,132.66,132.62,9.30238602]
[1763949844294,0.65,132.66,132.61,12.74238602]
[1763949844491,0.65,132.68,132.64,9.30238602]
[1763949846429,0.65,132.68,132.62,0.75403408]
[1763949846430,9.95238602,132.68,132.62,0.75403408]
[1763949846721,9.30238602,132.67,132.62,9.30238602]
[1763949846908,0.65,132.67,132.63,9.30238602]
[1763949847498,9.95238602,132.67,132.62,9.30238602]
[1763949848027,9.30238602,132.65,132.6,9.30238602]
[1763949848217,9.30238602,132.65,132.6,12.74238602]
[1763949848418,0.65,132.64,132.6,12.74238602]
[1763949848605,9.95238602,132.64,132.6,3.44]
[1763949849122,0.65,132.63,132.6,3.44]
[1763949849504,9.95238602,132.63,132.6,3.44]
[1763949849920,0.65,132.62,132.6,3.44]
[1763949851931,18.12096,132.69,132.6,12.74238602]
[1763949851932,0.65,132.64,132.6,12.74238602]
[1763949852117,9.30238602,132.65,132.6,12.74238602]
[1763949852504,0.65,132.65,132.62,9.30238602]
[1763949852705,9.95238602,132.67,132.62,9.30238602]
[1763949852920,9.30238602,132.66,132.61,9.30238602]
[1763949853114,0.16466685,132.63,132.61,9.30238602]
[1763949853634,0.81466685,132.63,132.6,3.44]
[1763949853819,10.11705287,132.63,132.6,3.44]
[1763949854320,0.65,132.62,132.6,3.44]
[1763949856636,0.16466685,132.63,132.6,3.44]
[1763949856840,0.72,132.62,132.6,3.44]
[1763949857836,9.30238602,132.61,132.59,0.2]
[1763949858048,0.16466685,132.63,132.6,0.67]
[1763949858238,0.16466685,132.63,132.62,9.30238602]
[1763949858448,0.13683158,132.66,132.64,18.12096]
[1763949858744,0.13683158,132.66,132.65,13.49624957]
[1763949858957,0.13683158,132.66,132.65,14.16624957]
[1763949859547,0.13683158,132.66,132.65,13.49624957]
[1763949859725,0.13683158,132.66,132.65,21.03488507]
[1763949860133,0.13683158,132.66,132.65,13.49624957]
[1763949861055,0.13683158,132.66,132.65,21.03488507]
[1763949861349,0.13683158,132.66,132.65,13.49624957]
[1763949861543,0.13683158,132.66,132.65,12.74238602]
[1763949861867,0.85683158,132.66,132.65,3.44]
[1763949863354,10.1592176,132.66,132.62,3.44]
[1763949863663,0.13683158,132.66,132.63,9.30238602]
[1763949864152,0.13683158,132.66,132.62,3.44]
[1763949864153,0.85683158,132.66,132.62,3.44]
[1763949864352,0.13683158,132.66,132.65,9.30238602]
[1763949866563,0.85683158,132.66,132.62,3.44]
[1763949866927,0.85683158,132.66,132.64,9.30238602]
[1763949867131,0.13683158,132.66,132.64,9.30238602]
[1763949867754,0.13683158,132.66,132.65,9.30238602]
[1763949868059,0.13683158,132.66,132.64,9.30238602]
[1763949868239,0.13683158,132.66,132.63,8.29354475]
[1763949868555,0.13683158,132.66,132.65,9.30238602]
[1763949869669,0.13683158,132.66,132.64,12.74238602]
[1763949869985,0.13683158,132.66,132.65,10.05624957]
[1763949870172,0.13683158,132.66,132.65,18.26488507]
[1763949871077,0.13683158,132.66,132.65,10.05624957]
[1763949871871,0.13683158,132.66,132.65,17.59488507]
[1763949872477,0.13683158,132.66,132.65,18.26488507]
[1763949873200,0.27902369,132.66,132.65,18.26488507]
[1763949873768,0.14219211,132.66,132.65,18.26488507]
[1763949873981,0.15924744,132.7,132.66,68.59096]
[1763949874153,0.15924744,132.7,132.69,9.30238602]
[1763949874561,0.15924744,132.7,132.69,6.5366178]
[1763949874761,1e-08,132.7,132.69,6.5366178]
[1763949874961,1e-08,132.7,132.69,25.41121409]
[1763949876067,1e-08,132.7,132.69,32.94757704]
[1763949876897,1e-08,132.7,132.69,10.24025409]
[1763949877555,1e-08,132.7,132.69,3.42]
[1763949877556,0.72000001,132.7,132.69,3.42]
[1763949879056,1e-08,132.7,132.69,3.42]
[1763949879261,1e-08,132.7,132.69,17.02298075]
[1763949880368,1e-08,132.7,132.69,9.4866178]
[1763949880690,1e-08,132.7,132.69,17.49298075]
[1763949880880,1e-08,132.7,132.69,17.02298075]
[1763949882627,1e-08,132.7,132.69,35.14394075]
[1763949883004,1e-08,132.7,132.69,199.24394075]
[1763949885074,1e-08,132.7,132.69,3.42]
[1763949885247,0.68000001,132.7,132.69,3.42]
[1763949885936,0.68000001,132.7,132.64,6.0666178]
[1763949886124,0.68000001,132.7,132.67,6.0666178]
[1763949886329,0.68000001,132.7,132.68,9.4866178]
[1763949886330,1e-08,132.7,132.68,9.4866178]
[1763949886561,6.73661781,132.7,132.68,3.42]
[1763949886732,6.73661781,132.7,132.65,6.0666178]
[1763949886733,6.73661781,132.7,132.66,3.42]
[1763949886928,6.7366178,132.69,132.66,3.42]
[1763949887134,6.0666178,132.68,132.66,3.42]
[1763949887347,6.7366178,132.68,132.66,3.42]
[1763949887537,0.67,132.67,132.66,3.42]
[1763949889065,6.7366178,132.67,132.66,3.42]
[1763949889467,0.67,132.67,132.66,3.42]
[1763949890536,0.67,132.67,132.61,7.54066256]
[1763949890738,6.7366178,132.67,132.62,3.42]
[1763949890942,6.0666178,132.66,132.62,3.42]
[1763949891135,6.0666178,132.65,132.62,3.42]
[1763949891349,6.7366178,132.65,132.62,3.42]
[1763949891544,0.67,132.64,132.62,3.42]
[1763949893042,0.1469913,132.63,132.62,3.42]
[1763949893451,0.8169913,132.63,132.62,3.42]
[1763949894162,0.1469913,132.63,132.62,9.4866178]
[1763949894361,0.8169913,132.63,132.62,3.42]
[1763949896315,0.13909208,132.64,132.62,18.2509927]
[1763949896471,0.13909208,132.64,132.63,6.0666178]
[1763949896765,0.13909208,132.64,132.63,7.85977229]
[1763949896949,0.13909208,132.64,132.63,13.92639009]
[1763949897158,0.14637242,132.65,132.64,6.0666178]
[1763949897358,0.14637242,132.65,132.64,7.00053818]
[1763949898447,0.14637242,132.65,132.64,0.93392038]
[1763949898770,0.14637242,132.65,132.64,7.00053818]
[1763949899269,0.14637242,132.65,132.64,14.53974204]
[1763949900469,1e-08,132.65,132.64,32.66070204]
[1763949900670,0.14452872,132.66,132.64,88.69408424]
[1763949900871,0.09911304,132.68,132.67,18.12096]
[1763949901074,1e-08,132.7,132.69,50.0]
[1763949901374,0.1,132.79,132.72,18.12096]
[1763949901583,0.1,132.79,132.76,18.12096]
[1763949901791,0.1,132.79,132.77,3.42]
[1763949901951,0.1,132.79,132.77,25.72805738]
[1763949902153,0.1,132.79,132.77,3.42]
[1763949902359,0.1,132.79,132.78,6.0666178]
[1763949902663,0.1,132.84,132.78,6.0666178]
[1763949902864,0.1,132.84,132.83,6.0666178]
[1763949903172,0.1,132.84,132.83,3.42]
[1763949903392,0.1,132.84,132.83,17.01503758]
[1763949903552,0.67,132.86,132.83,3.42]
[1763949904064,0.67,132.86,132.83,9.4866178]
[1763949904265,6.7366178,132.86,132.83,3.42]
[1763949904450,0.67,132.86,132.83,3.42]
[1763949904649,6.7366178,132.85,132.83,3.42]
[1763949904854,0.67,132.85,132.83,3.42]
[1763949905056,0.67,132.84,132.83,3.42]
[1763949905374,6.0666178,132.88,132.83,9.4866178]
[1763949905757,6.7366178,132.87,132.83,3.42]
[1763949906069,6.0666178,132.85,132.83,2.7]
[1763949906478,0.67,132.84,132.83,2.7]
[1763949907266,0.67,132.86,132.83,2.7]
[1763949907578,6.0666178,132.86,132.83,2.7]
[1763949907792,18.12096,132.95,132.83,2.7]
[1763949907990,6.0666178,132.9,132.85,6.0666178]
[1763949908280,6.0666178,132.91,132.86,6.0666178]
[1763949908484,6.0666178,132.91,132.87,3.42]
[1763949908682,0.67,132.9,132.87,9.4866178]
[1763949910655,0.67,132.9,132.87,3.42]
[1763949910656,6.7366178,132.9,132.87,3.42]
[1763949910852,6.0666178,132.89,132.87,3.42]
[1763949911056,0.67,132.89,132.87,3.42]
[1763949911310,0.67,132.88,132.87,3.42]
[1763949911700,0.67,132.88,132.81,18.12096]
[1763949911701,6.7366178,132.88,132.83,9.4866178]
[1763949911859,6.7366178,132.9,132.85,6.0666178]
[1763949912058,6.7366178,132.9,132.84,6.0666178]
[1763949912059,6.0666178,132.88,132.84,6.0666178]
[1763949912376,0.67,132.87,132.83,9.4866178]
[1763949912581,6.7366178,132.87,132.83,3.42]
[1763949912800,6.0666178,132.86,132.83,3.42]
[1763949913083,0.15473891,132.84,132.83,3.42]
[1763949913467,0.15473891,132.84,132.83,9.4866178]
[1763949913665,0.15473891,132.84,132.83,17.01503758]
[1763949913986,0.15473891,132.84,132.83,9.4866178]
[1763949914486,0.15473891,132.84,132.83,10.94841978]
[1763949914661,0.15473891,132.84,132.83,17.01503758]
[1763949915289,0.15473891,132.84,132.83,17.73503758]
[1763949915492,0.14884469,132.88,132.83,17.73503758]
[1763949915493,0.13629139,132.91,132.85,18.12096]